bitfinex/quotes_SOLUSD_20250728
["timestamp","ask_amount","ask_price","bid_price","bid_amount"]
[1753719029080,0.71,186.94,186.9,10.60386849]
[1753719029283,1.37869951,186.93,186.89,10.60386849]
[1753719029595,0.66869951,186.93,186.9,10.60386849]
[1753719029784,0.66862797,186.95,186.92,10.60386849]
[1753719030084,6.01758138,186.96,186.92,10.60386849]
[1753719030291,39.34855645,186.97,186.94,10.60386849]
[1753719030489,39.34855645,186.97,186.96,10.60386849]
[1753719030794,45.40700807,186.97,186.93,10.60386849]
[1753719030996,40.02855645,186.97,186.93,10.60386849]
[1753719031301,39.34855645,186.97,186.95,10.60386849]
[1753719031460,39.34855645,186.97,186.92,5.34984321]
[1753719031461,0.03,187.01,186.96,10.60386849]
[1753719031661,0.03,187.01,186.92,17.48297596]
[1753719031662,0.68,187.0,186.92,17.48297596]
[1753719031890,0.66848494,186.99,186.94,10.60386849]
[1753719032081,0.68,186.98,186.94,10.60386849]
[1753719032279,0.68,186.98,186.95,10.60386849]
[1753719032586,0.66855645,186.97,186.95,10.60386849]
[1753719032761,0.66844919,187.0,186.95,10.60386849]
[1753719032960,0.66844919,187.0,186.97,10.60386849]
[1753719033364,6.01613339,187.0,186.97,10.60386849]
[1753719033580,6.01613339,187.0,186.96,10.60386849]
[1753719033784,6.69613339,187.0,186.96,10.60386849]
[1753719034965,6.01613339,187.0,186.96,10.60386849]
[1753719035167,0.68,186.99,186.96,10.60386849]
[1753719035370,6.01613339,187.0,186.95,10.60386849]
[1753719035371,1.34852069,186.98,186.95,10.60386849]
[1753719035693,0.68,186.97,186.94,10.60386849]
[1753719035990,1.34859221,186.96,186.93,10.60386849]
[1753719036684,0.66859221,186.96,186.93,10.60386849]
[1753719036870,6.01737188,186.96,186.93,10.60386849]
[1753719037070,6.01737188,186.96,186.94,10.60386849]
[1753719037471,0.66859221,186.96,186.94,10.60386849]
[1753719037798,0.03,187.01,186.96,16.78468397]
[1753719037966,0.03,187.01,186.98,10.60386849]
[1753719037967,6.05739365,187.01,186.98,10.60386849]
[1753719038164,1.34844919,187.0,186.98,10.60386849]
[1753719038568,6.69625078,187.0,186.98,10.60386849]
[1753719038798,6.04625078,187.0,186.98,10.60386849]
[1753719039098,0.03,187.0,186.99,10.60386849]
[1753719039769,0.03,187.0,186.98,10.60386849]
[1753719040184,0.03,187.0,186.99,10.60386849]
[1753719040567,1.37844919,187.0,186.97,10.60386849]
[1753719040769,49.92386849,186.99,186.96,0.06]
[1753719041000,11.27238918,186.98,186.96,0.06]
[1753719041202,10.60386849,186.97,186.96,0.06]
[1753719041372,11.28386849,186.97,186.96,0.06]
[1753719041571,0.66852069,186.98,186.96,0.06]
[1753719041880,39.30848494,186.99,186.96,10.66386849]
[1753719042081,39.30848494,186.99,186.96,0.06]
[1753719042473,5.34816557,186.98,186.96,0.06]
[1753719042674,39.30848494,186.99,186.96,10.66386849]
[1753719042902,38.64,186.99,186.98,10.60386849]
[1753719043196,0.03,187.0,186.98,10.60386849]
[1753719043503,0.03,187.0,186.99,10.60386849]
[1753719043999,0.03,187.0,186.99,11.03386849]
[1753719044176,0.03,187.0,186.99,10.60386849]
[1753719044376,0.03,187.0,186.99,11.03386849]
[1753719045001,0.03,187.0,186.99,15.95174805]
[1753719045401,0.03,187.0,186.99,10.60386849]
[1753719045580,0.03,187.0,186.99,15.95174805]
[1753719045774,0.03,187.0,186.99,16.38174805]
[1753719045995,0.03,187.0,186.96,32.45813449]
[1753719046189,0.03,187.0,186.99,10.60386849]
[1753719046393,0.03,187.0,186.98,10.60386849]
[1753719046792,0.71,187.0,186.97,10.60386849]
[1753719047195,1.34848494,186.99,186.97,10.60386849]
[1753719047384,0.68,186.98,186.97,10.60386849]
[1753719047587,0.66848494,186.99,186.97,10.60386849]
[1753719047782,1.34848494,186.99,186.97,10.60386849]
[1753719048302,1.34848494,186.99,186.96,10.66386849]
[1753719048608,0.68,186.98,186.96,10.66386849]
[1753719048907,38.65,187.0,186.97,10.60386849]
[1753719049076,38.65,187.0,186.99,10.60386849]
[1753719049624,0.03,187.0,186.99,27.81855246]
[1753719049973,0.03,187.0,186.99,27.38855246]
[1753719050511,0.03,187.0,186.99,27.81855246]
[1753719050683,0.03,187.0,186.99,44.05462365]
[1753719050878,0.03,187.0,186.99,50.36241513]
[1753719051906,0.03,187.03,187.02,43.06900711]
[1753719052077,0.03,187.03,187.02,53.94065261]
[1753719052283,0.03,187.03,187.02,54.37065261]
[1753719052509,0.03,187.03,187.02,92.70632947]
[1753719052687,0.03,187.03,187.02,98.05335117]
[1753719052883,0.03,187.03,187.02,59.00335117]
[1753719053093,0.03,187.03,187.02,10.60386849]
[1753719053495,0.03,187.03,187.02,59.00335117]
[1753719053806,0.03,187.03,187.02,59.43335117]
[1753719054206,0.03,187.03,187.02,59.71767431]
[1753719054409,0.03,187.03,187.02,72.33767431]
[1753719054794,0.03,187.05,187.04,16.78468397]
[1753719054993,0.03,187.05,187.04,53.94050969]
[1753719055197,0.03,187.05,187.04,28.37050969]
[1753719055901,0.03,187.05,187.04,27.65618655]
[1753719056085,0.03,187.05,187.04,10.60386849]
[1753719056287,0.71,187.05,187.03,10.60386849]
[1753719056612,0.71,187.05,187.04,10.60386849]
[1753719056788,0.68,187.04,187.02,10.60386849]
[1753719056994,0.68,187.03,187.02,10.60386849]
[1753719057202,0.03,187.05,187.02,10.60386849]
[1753719057508,0.03,187.05,187.0,22.13205695]
[1753719057509,0.03,187.05,187.04,10.60386849]
[1753719058106,0.71,187.05,187.04,10.60386849]
[1753719058295,0.71,187.05,187.03,10.60386849]
[1753719058827,0.68,187.04,187.02,10.60386849]
[1753719059109,0.03,187.05,187.02,10.60386849]
[1753719059317,0.71,187.05,187.02,10.60386849]
[1753719059488,0.68,187.04,187.01,10.60386849]
[1753719059685,0.68,187.03,187.0,27.38855246]
[1753719059888,1.34837771,187.02,186.98,10.60386849]
[1753719060088,1.34837771,187.02,186.96,38.68]
[1753719060089,11.28386849,187.01,186.96,10.66386849]
[1753719060314,10.60386849,186.98,186.96,0.06]
[1753719060504,1.34855645,186.97,186.96,0.06]
[1753719060887,17.30087656,186.97,186.96,0.06]
[1753719061134,17.30087656,186.97,186.89,38.68]
[1753719061135,17.30087656,186.97,186.89,10.66386849]
[1753719061345,1.5317,186.95,186.89,0.06]
[1753719061619,10.60386849,186.92,186.89,0.06]
[1753719061923,1.35877106,186.91,186.89,0.06]
[1753719062091,0.69,186.91,186.89,0.06]
[1753719062292,0.66873528,186.92,186.89,10.66386849]
[1753719062592,0.66866374,186.94,186.9,10.60386849]
[1753719062793,0.66862797,186.95,186.93,10.60386849]
[1753719062990,1.35866374,186.94,186.91,10.60386849]
[1753719063407,39.33,186.97,186.93,10.60386849]
[1753719063615,0.66859221,186.96,186.94,10.60386849]
[1753719063896,39.99855645,186.97,186.94,10.60386849]
[1753719064114,39.99855645,186.97,186.93,10.60386849]
[1753719064719,38.64,186.97,186.94,10.60386849]
[1753719064923,38.64,186.97,186.95,10.60386849]
[1753719065415,6.0164586,186.99,186.95,10.60386849]
[1753719065634,0.69,186.98,186.95,10.60386849]
[1753719065999,0.66844919,187.0,186.97,10.60386849]
[1753719066198,0.69,186.99,186.96,10.60386849]
[1753719068602,6.01578397,187.01,186.96,10.60386849]
[1753719069126,0.69,187.0,186.96,10.60386849]
[1753719069520,0.66841345,187.01,186.99,10.60386849]
[1753719069705,0.03,187.03,187.0,10.60386849]
[1753719070035,1.35837771,187.02,186.99,10.60386849]
[1753719070201,0.69,187.01,186.99,10.60386849]
[1753719070615,0.69834197,187.03,187.0,10.60386849]
[1753719071329,0.03,187.03,187.01,10.60386849]
[1753719071528,0.72,187.03,187.0,10.60386849]
[1753719072326,0.03,187.03,187.0,10.60386849]
[1753719072510,0.03,187.03,187.02,10.60386849]
[1753719072711,0.03,187.03,187.01,10.60386849]
[1753719073348,5.37684271,187.03,186.97,16.78468397]
[1753719073506,1.35837771,187.02,186.97,27.38855246]
[1753719073707,0.69,187.01,186.98,10.60386849]
[1753719074125,0.66837771,187.02,186.98,10.60386849]
[1753719074430,0.69,187.02,186.99,10.60386849]
[1753719074806,6.04515175,187.03,186.99,10.60386849]
[1753719075006,6.73515175,187.03,186.99,10.60386849]
[1753719075206,11.29386849,187.02,186.96,10.60386849]
[1753719075428,19.41199129,187.03,186.95,36.60386849]
[1753719075429,10.60386849,187.0,186.95,36.60386849]
[1753719075641,1.35848494,186.99,186.95,36.60386849]
[1753719076027,0.66848494,186.99,186.96,10.60386849]
[1753719076342,38.62,187.0,186.97,10.60386849]
[1753719076646,39.28844919,187.0,186.97,10.60386849]
[1753719077030,38.62,187.0,186.97,10.60386849]
[1753719077545,39.28844919,187.0,186.97,10.60386849]
[1753719077750,39.97844919,187.0,186.97,10.60386849]
[1753719077924,0.69,186.99,186.96,10.60386849]
[1753719078337,5.34816557,186.98,186.95,10.60386849]
[1753719078542,0.69,186.97,186.93,10.60386849]
[1753719079331,6.01668626,186.98,186.94,10.60386849]
[1753719079535,6.70643758,186.99,186.95,10.60386849]
[1753719080354,6.70643758,186.99,186.94,10.60386849]
[1753719080562,0.69,186.98,186.94,10.60386849]
[1753719081353,0.66848494,186.99,186.95,10.60386849]
[1753719082055,6.01644797,186.99,186.95,10.60386849]
[1753719082422,38.62,187.0,186.96,10.60386849]
[1753719082622,39.28844919,187.0,186.96,10.60386849]
[1753719083257,39.97844919,187.0,186.96,10.60386849]
[1753719083438,39.31,187.0,186.96,10.60386849]
[1753719083750,39.28844919,187.0,186.96,10.60386849]
[1753719083958,39.97844919,187.0,186.96,10.60386849]
[1753719084134,39.31,187.0,186.96,10.60386849]
[1753719084456,43.96759498,187.0,186.96,10.60386849]
[1753719084640,44.65759498,187.0,186.96,10.60386849]
[1753719085047,1.35848494,186.99,186.95,10.60386849]
[1753719085549,38.62,187.01,186.98,10.60386849]
[1753719086143,38.62,187.01,186.99,10.60386849]
[1753719087334,0.03,187.03,187.0,10.60386849]
[1753719087546,0.03,187.03,187.02,10.60386849]
[1753719089032,0.03,187.03,186.98,36.60386849]
[1753719089033,17.33897221,187.03,186.98,36.60386849]
[1753719089247,11.29386849,187.02,186.96,16.78468397]
[1753719089447,11.27228194,187.01,186.95,10.60386849]
[1753719089667,11.29386849,187.0,186.95,10.60386849]
[1753719089959,11.96235343,186.99,186.94,10.60386849]
[1753719090161,11.27235343,186.99,186.93,10.60386849]
[1753719090351,0.69,186.98,186.94,10.60386849]
[1753719090739,0.66848494,186.99,186.92,16.78468397]
[1753719090946,10.60386849,186.93,186.91,0.06]
[1753719091150,17.28248607,186.92,186.91,0.06]
[1753719091868,17.28248607,186.92,186.89,0.06]
[1753719092049,10.60386849,186.9,186.89,0.06]
[1753719092251,11.27267533,186.9,186.89,0.06]
[1753719092449,11.93267533,186.9,186.89,0.06]
[1753719092872,39.28873528,186.92,186.89,0.06]
[1753719093177,5.35016853,186.91,186.89,0.06]
[1753719093551,43.96993335,186.92,186.89,0.06]
[1753719093747,38.62,186.92,186.89,0.06]
[1753719093969,43.97000986,186.92,186.89,0.06]
[1753719094160,44.63000986,186.92,186.89,0.06]
[1753719094550,38.62,186.92,186.89,0.06]
[1753719094757,0.66,186.97,186.91,10.60386849]
[1753719095075,55.24093939,186.97,186.91,10.60386849]
[1753719095254,11.26386849,186.96,186.9,10.60386849]
[1753719095456,0.66862797,186.95,186.9,10.60386849]
[1753719095662,0.66,186.94,186.9,10.60386849]
[1753719095873,1.32869951,186.93,186.9,10.60386849]
[1753719096059,0.66,186.92,186.89,0.06]
[1753719096376,0.66877106,186.91,186.89,0.06]
[1753719096680,1.32873528,186.92,186.89,0.06]
[1753719097179,0.66873528,186.92,186.89,10.66386849]
[1753719097367,44.63833891,186.93,186.89,10.66386849]
[1753719097568,39.28869951,186.93,186.9,10.60386849]
[1753719097870,38.62,186.96,186.92,10.60386849]
[1753719098180,38.62,186.96,186.93,10.60386849]
[1753719098376,38.62,186.96,186.94,10.60386849]
[1753719098957,39.28,186.96,186.93,10.60386849]
[1753719099258,0.66,186.95,186.92,10.60386849]
[1753719099955,39.28859221,186.96,186.93,10.60386849]
[1753719100167,38.62,186.96,186.93,10.60386849]
[1753719100572,38.62,186.96,186.94,10.60386849]
[1753719100778,38.62,186.96,186.95,10.60386849]
[1753719100962,38.62,186.99,186.95,10.60386849]
[1753719101163,0.69834197,187.03,186.98,10.60386849]
[1753719101357,0.03,187.03,187.01,10.60386849]
[1753719102053,0.03,187.03,186.99,10.60386849]
[1753719102655,0.03,187.03,186.98,16.78468397]
[1753719102656,0.66,187.02,186.97,36.60386849]
[1753719102853,0.66,187.01,186.97,36.60386849]
[1753719103163,39.28,187.01,186.97,36.60386849]
[1753719103469,17.28016612,187.0,186.95,10.60386849]
[1753719103674,0.66,186.99,186.95,10.60386849]
[1753719104254,1.32852069,186.98,186.94,27.38855246]
[1753719104457,0.66,186.98,186.94,16.78468397]
[1753719104657,0.66,186.98,186.94,27.38855246]
[1753719105757,6.01664798,186.99,186.94,27.38855246]
[1753719106071,6.67664798,186.99,186.94,16.78468397]
[1753719106769,5.34765164,187.0,186.96,10.60386849]
[1753719106971,6.01610083,187.0,186.97,10.60386849]
[1753719107362,6.01610083,187.0,186.96,10.60386849]
[1753719108081,6.67610083,187.0,186.96,10.60386849]
[1753719109162,6.67610083,187.0,186.95,10.60386849]
[1753719109359,10.60386849,186.97,186.91,26.06]
[1753719109558,10.60386849,186.97,186.92,16.78468397]
[1753719109559,10.60386849,186.96,186.92,16.78468397]
[1753719110061,38.6,186.97,186.92,10.60386849]
[1753719110460,38.6,186.97,186.94,27.38855246]
[1753719111479,10.60386849,186.95,186.91,0.06]
[1753719111654,10.60386849,186.92,186.91,0.06]
[1753719111997,49.86386849,186.92,186.91,0.06]
[1753719112364,39.26,186.92,186.91,0.06]
[1753719112694,50.53260377,186.92,186.91,0.06]
[1753719113665,55.21375079,186.92,186.91,0.06]
[1753719116791,55.21375079,186.92,186.89,0.06]
[1753719116792,26.0,186.9,186.89,0.06]
[1753719117002,37.27267533,186.9,186.89,0.06]
[1753719117165,47.49206012,186.89,186.88,1e-08]
[1753719117364,86.46773698,186.89,186.87,0.06]
[1753719117565,11.93274691,186.88,186.87,0.06]
[1753719117994,17.2837743,186.88,186.85,0.06]
[1753719118289,10.60386849,186.86,186.85,0.06]
[1753719118505,11.2728185,186.86,186.85,0.06]
[1753719118797,11.9328185,186.86,186.85,0.06]
[1753719119498,11.2728185,186.86,186.85,0.06]
[1753719120003,6.02055013,186.86,186.85,0.06]
[1753719121190,17.31441862,186.86,186.85,0.06]
[1753719124887,16.62441862,186.86,186.85,0.06]
[1753719125100,17.31441862,186.86,186.85,0.06]
[1753719125306,6.02055013,186.86,186.85,0.06]
[1753719125488,17.31441862,186.86,186.85,0.06]
[1753719127990,17.31441862,186.86,186.83,0.06]
[1753719127991,26.0,186.84,186.83,0.06]
[1753719128215,75.89289011,186.84,186.83,0.06]
[1753719128419,37.27289011,186.84,186.83,0.06]
[1753719128618,75.89289011,186.84,186.83,0.06]
[1753719129326,76.58289011,186.84,186.83,0.06]
[1753719129988,0.14216157,186.83,186.78,0.06]
[1753719130217,10.60386849,186.79,186.78,0.06]
[1753719130407,50.58306919,186.79,186.78,1e-08]
[1753719132110,55.93667484,186.79,186.78,1e-08]
[1753719132718,16.62667484,186.79,186.78,1e-08]
[1753719132925,44.64280635,186.79,186.78,1e-08]
[1753719134330,39.2892007,186.79,186.78,1e-08]
[1753719134837,0.66905743,186.83,186.78,27.93855247]
[1753719135134,38.62,186.84,186.82,10.60386849]
[1753719135302,38.62,186.84,186.8,11.15386849]
[1753719135499,0.66905743,186.83,186.8,10.60386849]
[1753719135811,38.62,186.82,186.79,10.60386849]
[1753719136014,38.62,186.82,186.8,10.60386849]
[1753719136412,38.62,186.82,186.81,10.60386849]
[1753719136612,38.62,186.82,186.8,10.60386849]
[1753719136813,38.62,186.82,186.79,10.60386849]
[1753719137201,38.62,186.82,186.78,11.1538685]
[1753719137402,38.62,186.82,186.78,10.6038685]
[1753719137617,10.60386849,186.8,186.78,1e-08]
[1753719137917,1.35912906,186.81,186.78,1e-08]
[1753719137918,49.89306919,186.79,186.78,1e-08]
[1753719138224,50.58306919,186.79,186.78,1e-08]
[1753719139627,26.28432314,186.76,186.75,1e-08]
[1753719139947,26.28432314,186.76,186.64,1.6223]
[1753719139948,37.55749983,186.76,186.63,6.7994]
[1753719140102,36.88819163,186.73,186.63,6.7994]
[1753719140295,76.17760736,186.73,186.63,6.7994]
[1753719140600,76.86760736,186.73,186.63,6.7994]
[1753719141026,76.86760736,186.73,186.63,17.40326849]
[1753719141736,82.22293323,186.73,186.63,17.40326849]
[1753719141928,0.28432314,186.72,186.63,6.7994]
[1753719142219,10.60386849,186.67,186.63,6.0894]
[1753719142394,38.62,186.66,186.63,6.0894]
[1753719142600,38.62,186.66,186.64,0.71]
[1753719142917,38.62,186.66,186.63,6.0894]
[1753719143123,38.62,186.66,186.6,0.71]
[1753719143124,10.60386849,186.64,186.6,0.71]
[1753719143322,11.2736429,186.63,186.6,0.71]
[1753719143620,15.96263811,186.61,186.59,0.2]
[1753719143924,49.22386849,186.6,186.59,0.2]
[1753719144218,49.91386849,186.6,186.59,0.2]
[1753719145617,55.27292529,186.6,186.59,0.2]
[1753719146222,49.24386849,186.6,186.59,0.2]
[1753719146715,49.93386849,186.6,186.59,0.2]
[1753719147024,49.24386849,186.6,186.59,0.2]
[1753719147219,49.91375059,186.6,186.59,0.2]
[1753719147647,11.27371469,186.61,186.59,0.2]
[1753719147811,16.63256555,186.61,186.59,0.2]
[1753719148010,38.64,186.6,186.59,0.2]
[1753719148211,49.24386849,186.6,186.59,0.2]
[1753719148420,38.64,186.6,186.59,0.2]
[1753719148636,11.27371469,186.61,186.59,0.2]
[1753719148834,49.93386849,186.6,186.59,0.2]
[1753719149519,49.24386849,186.6,186.59,0.2]
[1753719150549,38.64,186.6,186.59,0.2]
[1753719150720,55.55713053,186.6,186.59,0.2]
[1753719151066,0.28432314,186.59,186.48,18.18236849]
[1753719151214,10.60386849,186.53,186.48,6.0575]
[1753719151410,38.64,186.52,186.49,0.68]
[1753719151624,38.64,186.52,186.5,0.68]
[1753719151819,38.64,186.55,186.51,11.28386849]
[1753719152023,10.60386849,186.56,186.5,16.78468397]
[1753719152214,39.31006164,186.55,186.51,0.68]
[1753719152614,10.60386849,186.54,186.48,6.0575]
[1753719152929,49.91400198,186.53,186.48,16.66136849]
[1753719153131,39.31013349,186.53,186.49,0.68]
[1753719153842,38.64,186.53,186.5,0.68]
[1753719154033,38.64,186.55,186.52,10.60386849]
[1753719154236,26.0,186.61,186.5,0.68]
[1753719154237,38.64,186.58,186.55,16.78468397]
[1753719154547,38.64,186.59,186.57,10.60386849]
[1753719154875,38.64,186.59,186.57,0.68]
[1753719155080,38.64,186.59,186.54,0.68]
[1753719155248,0.6699539,186.58,186.53,10.60386849]
[1753719155449,38.64,186.57,186.53,10.60386849]
[1753719155749,44.00001728,186.57,186.52,16.78468397]
[1753719155944,10.60386849,186.55,186.5,10.60386849]
[1753719156192,11.27396605,186.54,186.49,10.60386849]
[1753719156471,38.64,186.53,186.5,10.60386849]
[1753719156666,38.64,186.53,186.5,11.28386849]
[1753719157252,39.31013349,186.53,186.5,10.60386849]
[1753719157856,39.31013349,186.53,186.5,11.28386849]
[1753719157857,38.64,186.53,186.5,11.28386849]
[1753719158057,38.64,186.53,186.5,10.60386849]
[1753719158260,38.64,186.53,186.48,23.52218397]
[1753719158591,10.60386849,186.57,186.51,10.60386849]
[1753719158747,16.78468397,186.65,186.56,10.60386849]
[1753719158748,0.66977441,186.63,186.56,10.60386849]
[1753719158952,0.66977441,186.63,186.59,10.60386849]
[1753719159153,39.30977441,186.63,186.59,10.60386849]
[1753719159459,38.64,186.63,186.6,10.60386849]
[1753719159661,11.27367879,186.62,186.55,0.68]
[1753719159868,1.3798103,186.62,186.57,10.60386849]
[1753719160079,17.34224815,186.62,186.57,10.60386849]
[1753719160256,17.34224815,186.62,186.56,36.60386849]
[1753719161167,6.73837966,186.62,186.57,10.60386849]
[1753719161370,0.71,186.61,186.57,10.60386849]
[1753719161707,10.60386849,186.58,186.51,10.60386849]
[1753719161983,10.60386849,186.56,186.5,10.60386849]
[1753719162156,45.37990833,186.57,186.49,0.68]
[1753719162157,40.02006164,186.55,186.49,10.60386849]
[1753719162373,10.60386849,186.54,186.49,10.60386849]
[1753719162691,0.67013349,186.53,186.48,33.44605246]
[1753719162902,38.64,186.52,186.48,23.52218397]
[1753719163186,38.64,186.52,186.49,10.60386849]
[1753719163418,0.6698821,186.6,186.52,16.78468397]
[1753719163578,0.6698821,186.6,186.57,10.60386849]
[1753719163579,38.64,186.59,186.57,10.60386849]
[1753719163767,38.64,186.59,186.58,10.60386849]
[1753719164376,0.6698103,186.62,186.58,15.96345824]
[1753719164673,38.64,186.62,186.61,10.60386849]
[1753719164871,38.64,186.62,186.61,11.28386849]
[1753719165078,5.35736501,186.66,186.61,11.28386849]
[1753719165292,0.66963089,186.67,186.63,10.60386849]
[1753719165293,39.30970265,186.65,186.63,10.60386849]
[1753719165493,38.64,186.65,186.63,10.60386849]
[1753719165862,38.64,186.65,186.64,10.60386849]
[1753719167495,38.64,186.65,186.6,16.78468397]
[1753719167670,38.64,186.65,186.63,10.60386849]
[1753719167995,43.99773511,186.65,186.62,10.60386849]
[1753719168394,38.64,186.65,186.62,10.60386849]
[1753719168602,38.64,186.65,186.63,10.60386849]
[1753719168778,38.64,186.65,186.64,10.60386849]
[1753719169299,38.64,186.65,186.64,27.38855246]
[1753719169607,0.66952329,186.7,186.65,16.78468397]
[1753719169777,13.38633061,186.76,186.64,11.28386849]
[1753719169778,38.64,186.71,186.68,10.60386849]
[1753719169991,0.66952329,186.7,186.67,10.60386849]
[1753719170190,6.02578321,186.7,186.67,10.60386849]
[1753719170412,0.71,186.69,186.66,10.60386849]
[1753719170607,6.02578321,186.7,186.66,10.60386849]
[1753719170818,6.02477389,186.73,186.69,10.60386849]
[1753719171013,38.64,186.72,186.69,10.60386849]
[1753719171221,0.6693082,186.76,186.71,33.88135246]
[1753719171402,38.64,186.79,186.75,10.60386849]
[1753719171717,38.64,186.79,186.76,10.60386849]
[1753719171902,39.35,186.79,186.75,10.60386849]
[1753719172103,38.64,186.79,186.76,10.60386849]
[1753719172308,38.64,186.79,186.75,10.60386849]
[1753719172513,43.99369481,186.79,186.75,10.60386849]
[1753719172691,0.71,186.78,186.75,10.60386849]
[1753719173112,0.71,186.77,186.72,0.26986747]
[1753719173320,10.60386849,186.74,186.69,10.60386849]
[1753719173635,5.35369481,186.79,186.67,27.38855246]
[1753719173636,10.60386849,186.72,186.67,27.38855246]
[1753719173794,0.71,186.71,186.67,27.38855246]
[1753719173992,11.34386849,186.7,186.65,10.60386849]
[1753719174318,55.31034178,186.69,186.63,10.60386849]
[1753719174521,10.60386849,186.67,186.62,16.97136849]
[1753719174907,57.38765653,186.69,186.62,16.78468397]
[1753719174908,50.60353526,186.66,186.62,16.78468397]
[1753719175213,11.31386849,186.65,186.59,10.66386849]
[1753719176139,6.0276468,186.64,186.59,10.66386849]
[1753719176298,5.35790827,186.64,186.59,10.66386849]
[1753719176499,6.06790827,186.64,186.59,10.66386849]
[1753719177222,5.35790827,186.64,186.61,10.60386849]
[1753719177941,5.35790827,186.64,186.6,10.60386849]
[1753719178547,6.06790827,186.64,186.6,10.60386849]
[1753719178916,11.9836429,186.63,186.59,0.06]
[1753719179119,38.62,186.62,186.59,0.06]
[1753719179540,39.33,186.62,186.59,0.06]
[1753719179745,38.62,186.62,186.59,10.66386849]
[1753719180140,38.62,186.62,186.59,0.06]
[1753719180347,6.06876962,186.61,186.59,0.06]
[1753719180651,17.34248431,186.61,186.59,0.06]
[1753719180853,11.31386849,186.6,186.59,0.06]
[1753719182228,38.62,186.6,186.59,0.06]
[1753719183823,38.62,186.64,186.6,16.78468397]
[1753719184046,38.62,186.64,186.61,10.60386849]
[1753719184224,43.97792821,186.64,186.61,10.60386849]
[1753719184426,38.62,186.64,186.61,10.60386849]
[1753719184627,0.66955916,186.69,186.63,10.60386849]
[1753719184976,43.97669449,186.69,186.65,10.60386849]
[1753719185376,38.62,186.69,186.66,10.60386849]
[1753719185673,1.31959502,186.68,186.63,27.38855246]
[1753719185873,11.27346351,186.68,186.63,16.78468397]
[1753719186075,0.65,186.67,186.62,16.81986849]
[1753719186283,5.35762121,186.65,186.61,10.60386849]
[1753719186582,43.97740928,186.66,186.62,10.60386849]
[1753719186759,43.97740928,186.66,186.63,10.60386849]
[1753719186964,43.97740928,186.66,186.62,10.60386849]
[1753719187378,43.97740928,186.66,186.59,0.06]
[1753719187563,11.92357114,186.65,186.6,10.60386849]
[1753719187767,5.35711503,186.67,186.63,10.60386849]
[1753719187975,38.62,186.66,186.63,10.60386849]
[1753719188467,43.97740822,186.66,186.63,10.60386849]
[1753719188884,43.97740822,186.66,186.59,0.33068567]
[1753719189084,11.92357114,186.65,186.59,27.44855246]
[1753719190116,1.31955916,186.69,186.64,10.60386849]
[1753719190321,38.62,186.68,186.66,10.60386849]
[1753719190481,5.35704719,186.67,186.65,10.60386849]
[1753719190684,43.97681815,186.68,186.65,10.60386849]
[1753719190996,38.62,186.68,186.66,10.60386849]
[1753719191412,43.97679087,186.68,186.64,16.78468397]
[1753719191582,43.97679087,186.68,186.65,10.60386849]
[1753719191913,0.03,186.7,186.67,10.60386849]
[1753719192209,0.03,186.7,186.68,10.60386849]
[1753719192442,0.03,186.7,186.67,10.60386849]
[1753719192715,5.38622221,186.7,186.67,10.60386849]
[1753719192908,0.03,186.7,186.69,10.60386849]
[1753719193085,0.03,186.7,186.69,28.08855246]
[1753719193285,0.03,186.7,186.69,27.38855246]
[1753719193683,0.03,186.7,186.69,34.52535246]
[1753719193889,0.03,186.7,186.69,34.8096756]
[1753719194500,0.03,186.7,186.69,40.16614889]
[1753719195200,0.03,186.7,186.69,78.78614889]
[1753719196319,0.03,186.7,186.69,73.4296756]
[1753719196507,0.03,186.7,186.69,78.78614889]
[1753719197094,0.03,186.73,186.69,78.78614889]
[1753719197095,0.03,186.73,186.72,43.06900711]
[1753719197312,0.03,186.76,186.75,42.78468397]
[1753719197622,0.03,186.76,186.75,92.2928756]
[1753719198412,0.03,186.76,186.75,53.38855246]
[1753719198741,0.68,186.76,186.75,16.78468397]
[1753719199026,0.68,186.76,186.72,75.49365035]
[1753719199322,0.68,186.76,186.73,16.78468397]